Cogmind - Beta 13 @@@ ROGUE MODE // 2024.07.10 @ 02:41:31 Player: Duduxx Result: Destroyed by S-10 Pest with Light Assault Rifle Performance ------------- Evolutions (1) 500 Regions Visited (2) 400 Robots Destroyed (55) 275 Value Destroyed (1263) 1263 Prototype IDs (6) 120 Alien Tech Used (0) 0 Bonus (15) 15 TOTAL SCORE: 2573 Bonus ------- High Alert Combat Kills 15 Cogmind --------- Core Integrity 0/400 Matter 265/300 Energy 233/250 System Corruption 1% Temperature Cool (96) Movement Rolling (140) Ox4 Location -9/Materials Parts ------- > --- POWER (1) -------- Ion Engine > --- PROPULSION (3) --- Wheel Improved Flight Unit Faulty Improved Flight Unit > --- UTILITY (3) ------ Heat Sink Large Storage Unit Medium Armor Plating > --- WEAPON (2) ------- Advanced Beam Cannon (fused) Rocket Launcher > --- INVENTORY (15) --- Improved Ion Engine Hover Unit Improved Flight Unit Improved Flight Unit Heat Sink Small Storage Unit Hacking Suite Improved EM Shotgun Improved EM Shotgun Rocket Launcher Katana Peak State ------------ > --- POWER ------------ Ion Engine > --- PROPULSION ------- Wheel Improved Flight Unit Improved Flight Unit > --- UTILITY ---------- Heat Sink Large Storage Unit Medium Armor Plating > --- WEAPON ----------- Advanced Beam Cannon Rocket Launcher > --- INVENTORY -------- Improved Ion Engine Hover Unit Improved Flight Unit Improved Flight Unit Heat Sink Small Storage Unit Hacking Suite Improved EM Shotgun Improved EM Shotgun Rocket Launcher Katana [Rating: 19] Favorites ----------- Power Light Nuclear Core Engine Ion Engine Power Core Light Nuclear Core Propulsion Light Treads Treads Light Treads Leg Aluminum Leg Wheel Wheel Flight Unit Improved Flight Unit Utility Small Storage Unit Device Improved Heat Sink Storage Small Storage Unit Hackware Hacking Suite Protection Medium Armor Plating Weapon Assault Rifle Energy Gun EM Pulse Gun Energy Cannon Advanced Beam Cannon Ballistic Gun Assault Rifle Ballistic Cannon Light Cannon Launcher Grenade Launcher Slashing Weapon Katana Build | -11 -10 -9 ------- Run | Yrd Mat Mat Slots Evolved 2 | . . 2 Power . | . . . Propulsion 1 | . . 1 Utility 1 | . . 1 Weapon . | . . . Parts Attached 48 | 6 9 33 Power 5 | 1 2 2 Engine 2 | 1 . 1 Core 3 | . 2 1 Reactor . | . . . Propulsion 18 | 2 3 13 Treads 3 | 2 . 1 Leg 10 | . 3 7 Wheel 3 | . . 3 Hover . | . . . Flight 2 | . . 2 Utility 10 | 1 2 7 Device 4 | . 1 3 Storage 2 | 1 . 1 Processor . | . . . Hackware 1 | . 1 . Protection 3 | . . 3 Artifact . | . . . Weapon 15 | 2 2 11 Energy Gun 4 | 1 1 2 Energy Cannon 1 | . . 1 Ballistic Gun 4 | 1 1 2 Ballistic Cannon 1 | . . 1 Launcher 4 | . . 4 Special Weapon . | . . . Impact Weapon . | . . . Slashing Weapon 1 | . . 1 Piercing Weapon . | . . . Special Melee Weapon . | . . . Unidentified Prototypes 1 | . . 1 Corrupted Parts 1 | . 1 . System Corruption 2 | . 2 . Parts Lost 18 | . 3 15 Power 2 | . . 2 Propulsion 7 | . 1 6 Utility 3 | . . 3 Weapon 6 | . 2 4 Highest Loss Streak 7 | . 1 7 To Critical Strikes . | . . . Average Slot Usage (%) 93 | . 98 89 Engine 4 | . 1 7 Core 6 | . 12 1 Treads 12 | . 26 1 Leg 5 | . 1 8 Wheel 10 | . . 18 Device 5 | . 7 4 Storage 12 | . 14 11 Hackware 5 | . 5 6 Protection 4 | . . 7 Energy Gun 8 | . 11 5 Energy Cannon 3 | . . 6 Ballistic Gun 8 | . 16 2 Ballistic Cannon 1 | . . 3 Slashing Weapon 1 | . . 2 Naked Turns . | . . . Heaviest Build 40 | 12 15 40 Greatest Support 40 | 40 40 30 Greatest Overweight (x) 11 | 2 . 11 Average Overweight (x) . | . . . Largest Inventory Capacity 15 | 8 8 15 Average Capacity 11 | 6 8 13 Most Carried 14 | 4 7 14 Average Carried 6 | 2 5 6 Final Capacity 15 | 8 8 15 Final Carried 11 | 4 6 11 Class Distribution -------------------- 89% | Mutant 10% | Scavenger-Mutant Dominant Class ---------------- Mutant | -10/Materials Mutant | -9/Materials Resources | -11 -10 -9 ----------- Run | Yrd Mat Mat Matter Collected 940 | 188 314 438 Remotely . | . . . Salvage Created 1930 | . 752 1178 Parts 132 | . 47 85 Haulers Intercepted 5 | . 1 4 Recyclers Shooed 1 | . . 1 Parts Field Recycled . | . . . Retrieved Matter . | . . . Parts Self-Destructed . | . . . Prevented . | . . . Kills | -11 -10 -9 ------- Run | Yrd Mat Mat Combat Hostiles Destroyed 35 | . 13 22 Melee 1 | . . 1 Guns 20 | . 13 7 Cannons 8 | . . 8 AOE 6 | . . 6 Classes Destroyed 10 | . 5 5 Worker 2 | . . 2 Builder 2 | . 1 1 Hauler 5 | . 1 4 Recycler 2 | . . 2 Operator 5 | . 3 2 Watcher 4 | . 1 3 Swarmer 10 | . . 10 Grunt 18 | . 13 5 Duelist 1 | . . 1 Sentry 6 | . . 6 Best Kill Streak 5 | . 3 5 Combat Bots Only 4 | . 3 4 Max Kills in Single Turn 2 | . 2 2 Gunslinging 1 | . 1 . Exploded 2 | . . 2 Melee 1 | . . 1 Uniques/NPCs Destroyed . | . . . Combat | -11 -10 -9 -------- Run | Yrd Mat Mat Hostile Shots Fired 246 | . 77 169 Missed 61 | . 24 37 Damage Taken 2512 | . 671 1841 Core 518 | . 113 405 Absorbed by Shields . | . . . Core Remaining (%) 77 | 100 54 . Volleys Fired 148 | . 50 98 Largest 2 | . 2 2 Hottest 113 | . 60 113 Shots Fired 250 | . 97 153 Gun 173 | . 97 76 Cannon 70 | . . 70 Launcher 7 | . . 7 Special . | . . . Kinetic 135 | . 59 76 Thermal 40 | . . 40 Explosive 7 | . . 7 Electromagnetic 68 | . 38 30 Robot Hit Streak 13 | . 11 13 Robot Miss Streak 6 | . 4 6 Penetration Max . | . . . Secondary Targets 2 | . 2 . Max Gunslinging Chain 1 | . 1 . Shots Hit Robots 173 | . 64 109 Core Hits 80 | . 29 51 Critical Kills . | . . . Critical Parts Destroyed 1 | . . 1 Critical Strikes 4 | . 1 3 Destroy 1 | . . 1 Blast 1 | . . 1 Corrupt 1 | . 1 . Sever 1 | . . 1 Melee Attacks 4 | . . 4 Impact . | . . . Slashing 4 | . . 4 Piercing . | . . . Sneak Attacks 1 | . . 1 Combat Hostiles . | . . . Follow-up Attacks . | . . . Damage Inflicted 3257 | . 849 2408 Guns 1748 | . 844 904 Cannons 794 | . . 794 Explosions 505 | . . 505 Melee 154 | . . 154 Ramming 56 | . 5 51 Kinetic 1321 | . 536 785 Thermal 478 | . . 478 Explosive 505 | . . 505 Electromagnetic 743 | . 308 435 Impact . | . . . Slashing 154 | . . 154 Piercing . | . . . Highest Corruption 3 | . 3 1 Average Corruption 1 | . 2 1 Corruption Purged . | . . . Corruption Blocked . | . . . Effects 13 | . 8 5 Message Errors 5 | . 4 1 Matter Fused 1 | . . 1 Heat Flow Errors 1 | . 1 . Energy Discharges 1 | . 1 . Parts Fused 1 | . . 1 Data Loss (minor) 3 | . 1 2 Data Loss (major) 1 | . 1 . Overload Shots . | . . . Overflow Damage 113 | . . 113 Projectiles 2 | . . 2 Explosions 71 | . . 71 Melee 40 | . . 40 Knockbacks 4 | . . 4 Impact . | . . . Kinetic 4 | . . 4 Secondary . | . . . Self-Inflicted Damage 89 | . . 89 Shots 3 | . . 3 Rammed 7 | 1 2 4 Targets Rammed 7 | 1 2 4 Kicked . | . . . Crushed . | . . . Highest Temperature 215 | . 156 215 Average Temperature 56 | . 32 65 Received Heat Transfer 777 | . 408 369 Siege Activations . | . . . Robots Corrupted . | . . . Combat Hostiles . | . . . Parts Fried 1 | . . 1 Impact Corruptions . | . . . Robots Melted . | . . . Combat Hostiles . | . . . Parts Melted 2 | . . 2 Heat Transferred 851 | . . 851 Parts Sabotaged . | . . . Parts Stolen . | . . . Parts Stripped . | . . . Power Chain Reactions . | . . . Alert | -11 -10 -9 ------- Run | Yrd Mat Mat Peak Influence 477 | . 218 477 Initial 29 | . . 29 Average 131 | . 84 175 Maximum Alert Level 2 | . 1 2 Low Security (%) 82 | 100 97 69 Level 1 16 | . 2 28 Level 2 1 | . . 2 Level 3 . | . . . Level 4 . | . . . Level 5 . | . . . High Security . | . . . Max Security . | . . . Squads Dispatched 10 | . 5 5 Investigation 8 | . 4 4 Extermination . | . . . Reinforcement 2 | . 1 1 Assault . | . . . Garrison . | . . . Intercept . | . . . Searches Triggered . | . . . Construction Impeded . | . . . Haulers Reinforced . | . . . Active Scanning Responses . | . . . Cargo Convoy Interrupts . | . . . Stealth | -11 -10 -9 --------- Run | Yrd Mat Mat Distress Signals 2 | . 1 1 Communications Jammed . | . . . Distress Signals . | . . . Times Spotted 59 | . 20 39 Peak Tracking Total 6 | . 3 6 Tactical Retreats 4 | . 1 3 Traps | -11 -10 -9 ------- Run | Yrd Mat Mat Traps Triggered 4 | . 1 3 Indirectly . | . . . Trap Hack Attempts . | . . . Triggered . | . . . Disarmed . | . . . Reprogrammed . | . . . Reused . | . . . Traps Extracted . | . . . Installed . | . . . Triggered . | . . . Machines | -11 -10 -9 ---------- Run | Yrd Mat Mat Machines Disabled 3 | . 1 2 Max in Single Turn 1 | . 1 1 Machines Repaired . | . . . Machines Dismantled . | . . . Machines Sabotaged . | . . . Overloaded Fab Kills . | . . . Hacking | -11 -10 -9 --------- Run | Yrd Mat Mat Machines Accessed 11 | . 7 4 Terminals 8 | . 6 2 Fabricators . | . . . Repair Stations . | . . . Recycling Units 3 | . 1 2 Scanalyzers . | . . . Garrison Access . | . . . Total Hacks 31 | . 20 11 Successful 12 | . 6 6 Failed 19 | . 14 5 Catastrophic 8 | . 7 1 Database Lockouts . | . . . Manual 17 | . 13 4 Terminals 25 | . 19 6 Fabricators . | . . . Repair Stations . | . . . Recycling Units 6 | . 1 5 Scanalyzers . | . . . Garrison Access . | . . . Terminal Hacks 6 | . 5 1 Record 1 | . 1 . Prototype ID Bank 3 | . 2 1 Hauler Manifests 1 | . 1 . Registered Components 1 | . 1 . Fabricator Hacks . | . . . Repair Station Hacks . | . . . Recycling Unit Hacks 6 | . 1 5 Process 2 | . . 2 Report Inventory 3 | . 1 2 Retrieve Matter 1 | . . 1 Scanalyzer . | . . . Garrison Access Hacks . | . . . Unauthorized Hacks . | . . . Terminals . | . . . Fabricators . | . . . Repair Stations . | . . . Recycling Units . | . . . Scanalyzers . | . . . Garrison Access . | . . . Data Cores Recovered 2 | . 1 1 Used 1 | . . 1 Hacking Detections 9 | . 6 3 Full Trace Events 7 | . 5 2 Feedback Events 1 | . 1 . Corruption 1 | . 1 . Feedback Blocked . | . . . Robot Schematics Acquired . | . . . Robots Built . | . . . Authchips . | . . . Time . | . . . Total Robot Build Rating . | . . . Part Schematics Acquired . | . . . Parts Built . | . . . Authchips . | . . . Time . | . . . Total Part Build Rating . | . . . Parts Repaired . | . . . Time . | . . . Parts Recycled . | . . . Recycled Matter 109 | . . 109 Retrieved Matter 119 | . . 119 Retrieved Components . | . . . Parts Scanalyzed . | . . . Part Schematics Acquired . | . . . Parts Damaged . | . . . Bothacking | -11 -10 -9 ------------ Run | Yrd Mat Mat Used RIF Installer . | . . . Robots Hacked . | . . . Non-combat . | . . . Combat . | . . . Robot Hacks Applied . | . . . Relay Couplers Released . | . . . Fabnet Peak Effective % . | . . . Robots Rewired . | . . . Allies Hacked . | . . . Hacks Repelled . | . . . Allies | -11 -10 -9 -------- Run | Yrd Mat Mat Total Allies . | . . . Largest Group . | . . . Highest-Rated Group . | . . . Highest-Rated Ally . | . . . Total Orders . | . . . Ally Attacks . | . . . Total Damage . | . . . Kills . | . . . Allies Corrupted . | . . . Allies Melted . | . . . Intel | -11 -10 -9 ------- Run | Yrd Mat Mat Robot Analysis Total . | . . . Derelict Logs Recovered . | . . . Drone Launches . | . . . Drone Recoveries . | . . . Exploration | -11 -10 -9 ------------- Run | Yrd Mat Mat Turns Passed 2126 | 69 907 1150 Spaces Moved 1174 | 38 465 671 Core 10 | 7 . 3 Treads 481 | 31 446 4 Legs 179 | . 19 160 Wheels 504 | . . 504 Hover . | . . . Flight . | . . . Fastest Speed 50 | 50 120 95 Average Speed 133 | 143 158 115 Slowest Speed 600 | 160 160 600 Overloaded Moves . | . . . Propulsion Burnouts . | . . . Robots Hopped . | . . . Cave-ins Triggered . | . . . Exploration Rate (%) 47 | 3 82 57 Regions Visited 2 Branch Regions . Pre-discovered Areas . | . . . Known Exits Taken . | . . . Unknown Exits Taken 2 | 1 1 . Scrap Searched . | . . . Spaces Dug . | . . . Terrain Destroyed 26 | . . 26 Melee . | . . . Projectile . | . . . AOE 26 | . . 26 Terrain Rammed . | . . . Walls Destroyed . | . . . Machines Disabled . | . . . Actions | -11 -10 -9 --------- Run | Yrd Mat Mat Total 1470 | 49 540 881 Wait 38 | . . 38 Move 1172 | 37 464 671 Hop . | . . . Pick Up 29 | 5 7 17 Fast Attach 24 | 5 2 17 Attach 18 | 1 6 11 Detach 11 | . 4 7 Swap 6 | . 1 5 Drop 13 | . 4 9 Fire 148 | . 50 98 Melee 4 | . . 4 Ram 4 | . . 4 Kick . | . . . Crush 3 | 1 2 . Escape Stasis . | . . . Rewire . | . . . Trap . | . . . Miscellaneous . | . . . Route ------- -11/Scrapyard -10/Materials (discovered 3 exits: *Mat x2 / [*Min]) -9/Materials (discovered 2 exits: [*Mat x2]) History --------- Turn | Location | Event 8 | -11/Scrapyard | Discovered new exit (range 16) 70 | -11/Scrapyard | Entered Materials 317 | -10/Materials | Build established: Mutant 325 | -10/Materials | Discovered new exit (range 16) 568 | -10/Materials | Discovered new exit (range 13) 834 | -10/Materials | Discovered new exit (range 8) 977 | -10/Materials | Entered another Materials area 977 | -9/Materials | Evolved 2 slots: Propulsion x1, Utility x1 1136 | -9/Materials | Core integrity fell below 50% 1168 | -9/Materials | Lost 7 parts (2p2n1u2w) 1722 | -9/Materials | Discovered new exit (range 16) 1913 | -9/Materials | Core integrity fell below 20% 2026 | -9/Materials | Discovered new exit (range 12) 2127 | -9/Materials | Destroyed by S-10 Pest with Light Assault Rifle Last Messages --------------- 02098_ ALERT: Hostiles spotted, dispatching reinforcements to Terminal M002. 02098_ O-16 Technician locks terminal. 02102_ O-16 Technician destroyed. 02102_ Terminal disabled. 02104_ K-01 Serf collects debris. 02110_ Wheel destroyed. 02111_ Y-45 Defender destroyed. 02112_ K-01 Serf collects debris. 02115_ Acquired Hacking Suite. 02116_ Critical hit (Burn: +37). 02117_ K-01 Serf collects debris. 02118_ Flight Unit melted. 02118_ S-10 Pest destroyed. 02121_ K-01 Serf collects debris. 02122_ Faulty integration triggers heat surge (+245). 02122_ Wheel destroyed. 02125_ K-01 Serf collects debris. 02126_ Grenade Launcher destroyed. Map ----- +----------------------------------------------------+ | ???????????????????????????????????????????? | | ???????????????????????????????????????????? | | ???????????????????????????????????????????? | | ???????????????????????????????????????????? | | ???????????????????????????????????????????? | | ????????????????????? ?????????????????????? | | ???????????????????## #????????????????????? | | ??????????????????# ???????????????????? | | ??????????????????# = ???????????????????? | | ??????????????????# =%[ ???????????????????? | | ??????????????????# != #??????????????????? | | ??????????????????# %% #??????????????????? | | #####?????????????# * #??????? #???????? | | ###+########### #?????? #???????? | | ? #?????? #????????? | | ^ ? #????? #?????????? | | ??? ###### #### ?????? | | ########???????# ?????? | | ##??????????????# #????? | | #???????????????# [[ #????? | | #???????????????# *%k [[ #????????? | | #???????????????# / #????????? | | ########????????#!!! #????????? | | # ???####?#!!! #????????? | | # """ ???#== ?#!! """" #????????? | | # """"" ??#== ## @ """" #????????? | | # """"" ?##!! """" #????????? | | #= """"" ##!! #????????? | | +% """ ##// #????????? | | %#*[ ##// #????????? | | % #! ###### Y####+########????????? | | ###########????# #????????????????????? | | % % #?????????????# #????????????????????? | | #????????????## ##???????????????????? | | ############## #???????????????????? | | *%= #???????????????????? | | ############## T #???????????????????? | | #####????????????# #???????????????????? | | ?????????????????# #???????????????????? | | ?????????????????## ##???????????????????? | | ??????????????????# #????????????????????? | | ??????????????????# #????????????????????? | | ??????????????????# #????????????????????? | | ??????????????????# #????????????????????? | | ?????????????????? ????????????????????? | | ?????????????????? ????????????????????? | | ?????????????????? ???????????????????? | | ?????????????????? ???????????????????? | | ??????????????????? ##??????????????????? | | ???????????????????# ##????????????????????? | +----------------------------------------------------+ Best States ------------- Heat Dissipation 48 Energy Generation 14 Energy Capacity 250 Matter Stores 300 Matter Capacity 300 Sight Range 16 Terrain Scan Density 10 Armor Coverage 225 Evasion (%) 55 Recoil Reduction 2 Offensive Hacking 10 Item Schematics ----------------- None Robot Schematics ------------------ None Fabricated ------------ Nothing Alien Tech Used ----------------- None Achievements -------------- None Challenges ------------ None Game ------ Seed ChainDimensionalConstruct Manual? 0 Play Time 00:19:12 Cumulative 35.5 hours Start 2024.07.10 @ 02:23:53 End 2024.07.10 @ 02:41:31 Sessions 1 Manual Loads 0 Difficulty Rogue Special Mode None Game No. 84 Rogue 84 Adventurer 0 Explorer 0 Win Type - Total 0 Types 0/0/0/0/0/0/0/0/0 Lore% 24 Gallery% 31 Achievement% 23 Wizard Run 0 Options --------- Layout 1 ASCII 0 Keyboard 1 Movement Arrows Keybinds 0 Fullscreen 1 Font 24/Smallcaps Map View 50x35 Zoom Use 0% Tactical HUD 1 Map Filters NONE Filters NONE Steam 1 RUN: 970a70f8-c2df-4807-a9ff-4918134b5b8c